bitfinex-derivatives/quotes_ETHF0:USTF0_20250329
["timestamp","ask_amount","ask_price","bid_price","bid_amount"]
[1743224247601,4.50681,1893.2,1893.1,1.84293526]
[1743224248405,3.45,1893.2,1893.1,1.84293526]
[1743224249105,3.45,1893.2,1893.1,2.89979526]
[1743224251204,3.45,1893.2,1893.1,2.89995383]
[1743224251710,3.45,1893.2,1893.1,6.10775383]
[1743224251907,3.2078,1893.5,1893.1,7.69297383]
[1743224252101,3.449,1893.5,1893.3,1.05675]
[1743224252294,3.449,1893.5,1893.4,3.25499383]
[1743224252295,4.50568,1893.5,1893.4,3.25499383]
[1743224252499,1.05686,1893.1,1893.0,0.00791494]
[1743224252701,6.7158,1893.1,1892.6,1.05711]
[1743224252902,6.7158,1893.1,1892.7,1.3753]
[1743224253104,1.05707,1892.8,1892.7,1.3753]
[1743224253296,4.56407,1892.8,1892.7,1.3753]
[1743224254209,3.507,1892.8,1892.7,1.3753]
[1743224254407,3.507,1892.8,1892.7,2.0951]
[1743224255010,4.56403,1892.8,1892.7,2.0951]
[1743224255204,1.05703,1892.8,1892.7,2.0951]
[1743224255406,3.503,1892.8,1892.7,2.0951]
[1743224255911,4.92,1892.8,1892.7,2.0951]
[1743224256715,4.918,1892.8,1892.7,2.0951]
[1743224258811,3.499,1892.8,1892.7,2.0951]
[1743224259014,3.499,1892.8,1892.7,3.15219]
[1743224260411,0.00791494,1892.9,1892.8,1.05703]
[1743224260710,0.00791494,1892.9,1892.8,5.60243]
[1743224272223,0.00791494,1892.9,1892.8,2.39463]
[1743224272719,1.43361494,1892.9,1892.8,2.39463]
[1743224272920,0.00791494,1892.9,1892.8,2.39463]
[1743224273522,3.2078,1893.3,1892.8,4.5454]
[1743224273728,3.491,1893.6,1893.5,1.05664]
[1743224273915,1.388,1893.7,1893.6,1.05659]
[1743224274220,0.7379,1894.0,1893.9,1.05642]
[1743224274221,1.4446,1894.0,1893.9,1.05642]
[1743224274413,4.2257,1894.0,1893.8,1.05644]
[1743224274617,4.2257,1894.0,1893.9,1.4072]
[1743224274817,4.2257,1894.0,1893.9,2.46362]
[1743224278627,0.00791494,1894.1,1894.0,1.05636]
[1743224278829,3.51891494,1894.1,1894.0,2.39556]
[1743224280924,3.51891494,1894.1,1893.8,4.98633]
[1743224281123,3.51891494,1894.1,1893.8,6.38923]
[1743224281324,4.57526494,1894.1,1893.8,6.38923]
[1743224281622,1.05637,1894.0,1893.8,5.66713]
[1743224282028,0.706,1893.9,1893.8,5.66713]
[1743224284931,0.706,1893.9,1893.8,2.45933]
[1743224285833,2.1319,1893.9,1893.8,2.45933]
[1743224286823,2.1319,1893.9,1893.7,1.06439494]
[1743224286824,3.18833,1893.9,1893.7,1.06439494]
[1743224287026,4.9219,1893.8,1893.7,0.00791494]
[1743224287227,4.9219,1893.8,1893.7,1.34821494]
[1743224287930,4.9219,1893.8,1893.7,2.40474494]
[1743224288937,5.97837,1893.8,1893.7,1.34821494]
[1743224289132,6.64447,1893.8,1893.7,1.34821494]
[1743224289530,5.588,1893.8,1893.7,2.40474494]
[1743224292432,3.2078,1894.9,1894.8,1.05592]
[1743224292732,1.3559,1895.0,1894.9,1.05586]
[1743224292938,0.7013,1895.2,1895.1,1.05575]
[1743224293136,1.3559,1895.2,1895.1,1.05575]
[1743224293940,3.556,1895.2,1895.1,1.05575]
[1743224294641,3.556,1895.2,1895.1,4.26355]
[1743224295736,3.556,1895.2,1895.1,5.62865]
[1743224296336,1.36381494,1895.3,1895.2,1.05569]
[1743224296646,1.36381494,1895.3,1895.2,2.42079]
[1743224296943,4.91381494,1895.3,1895.2,2.42079]
[1743224298143,3.55491494,1895.3,1895.2,2.42079]
[1743224298339,3.55391494,1895.3,1895.2,2.42079]
[1743224299341,0.00791494,1895.3,1895.2,2.42079]
[1743224299651,3.544,1895.4,1895.3,1.05564]
[1743224299939,3.544,1895.4,1895.2,3.09166]
[1743224300138,1.3365,1895.3,1895.2,3.09166]
[1743224306550,3.55191494,1895.4,1895.3,1.05564]
[1743224310059,5.01181494,1895.4,1895.3,1.05564]
[1743224310357,5.01181494,1895.4,1895.2,1.3651]
[1743224310559,6.06743494,1895.4,1895.2,1.3651]
[1743224311151,6.06743494,1895.4,1895.2,2.42079]
[1743224311560,5.01181494,1895.4,1895.3,1.05564]
[1743224313864,5.01181494,1895.4,1895.2,1.3651]
[1743224314063,5.01181494,1895.4,1895.2,1.34815484]
[1743224314262,5.01181494,1895.4,1895.3,1.05564]
[1743224314462,4.99486978,1895.4,1895.3,1.05564]
[1743224314663,6.05044978,1895.4,1895.3,1.05564]
[1743224315558,4.59054978,1895.4,1895.3,1.05564]
[1743224315768,4.59054978,1895.4,1895.2,2.40380484]
[1743224315965,4.59054978,1895.4,1895.2,2.38685968]
[1743224316465,4.59054978,1895.4,1895.3,1.05564]
[1743224316660,4.57360462,1895.4,1895.3,1.05564]
[1743224318356,3.51802462,1895.4,1895.3,1.05564]
[1743224319159,4.87492462,1895.4,1895.3,1.05564]
[1743224320667,5.93052462,1895.4,1895.2,2.38687968]
[1743224320869,5.93052462,1895.4,1895.2,3.08713452]
[1743224321167,4.87492462,1895.4,1895.3,1.05564]
[1743224321380,4.85797946,1895.4,1895.3,1.05564]
[1743224323972,3.499,1895.4,1895.3,0.7152]
[1743224324164,3.499,1895.4,1895.3,3.14624]
[1743224336173,3.499,1895.4,1895.3,2.0906]
[1743224336174,5.89638,1895.4,1895.3,2.0906]
[1743224336376,4.8408,1895.4,1895.3,3.14624]
[1743224337479,3.499,1895.4,1895.3,3.14624]
[1743224342381,4.8383,1895.4,1895.3,3.14624]
[1743224346280,4.8383,1895.4,1895.3,2.43104]
[1743224346477,5.5236,1895.4,1895.3,2.43104]
[1743224346681,6.57918,1895.4,1895.3,1.3754]
[1743224346882,5.5236,1895.4,1895.0,3.61985865]
[1743224347185,1.3686,1895.3,1895.0,5.03611349]
[1743224347378,1.05574,1895.2,1895.1,1.4332]
[1743224347878,1.05581,1895.0,1894.9,1.4401]
[1743224348079,3.466,1895.0,1894.8,5.69687]
[1743224348278,3.466,1895.0,1894.9,1.4332]
[1743224349279,3.466,1895.0,1894.9,2.48906]
[1743224351188,3.466,1895.0,1894.9,2.87573915]
[1743224355391,4.52181,1895.0,1894.9,1.81987915]
[1743224355595,5.89571,1895.0,1894.9,0.38667915]
[1743224355789,5.89571,1895.0,1894.8,6.41170494]
[1743224356183,1.05586,1894.9,1894.8,5.74391934]
[1743224357891,5.89573,1895.0,1894.8,6.79980934]
[1743224358084,5.89573,1895.0,1894.9,1.4703]
[1743224369311,1.05586,1894.9,1894.8,0.00791494]
[1743224369508,2.44196,1894.9,1894.8,0.00791494]
[1743224370813,5.64976,1894.9,1894.8,0.00791494]
[1743224378423,2.44196,1894.9,1894.8,0.00791494]
[1743224378720,5.64976,1894.9,1894.8,0.00791494]
[1743224381029,2.44196,1894.9,1894.8,0.00791494]
[1743224381425,5.64976,1894.9,1894.8,0.00791494]
[1743224382119,2.44196,1894.9,1894.8,0.00791494]
[1743224382423,5.64976,1894.9,1894.8,0.00791494]
[1743224383118,3.429,1894.9,1894.8,0.00791494]
[1743224383317,3.429,1894.9,1894.8,0.69321494]
[1743224383625,4.48486,1894.9,1894.8,2.02821494]
[1743224385621,4.48486,1894.9,1894.8,1.34291494]
[1743224385822,5.15046,1894.9,1894.8,1.34291494]
[1743224386023,8.35826,1894.9,1894.8,1.34291494]
[1743224386325,9.79946,1894.9,1894.8,1.34291494]
[1743224386528,6.59166,1894.9,1894.8,1.34291494]
[1743224388526,5.92606,1894.9,1894.8,1.34291494]
[1743224399927,9.13386,1894.9,1894.8,1.34291494]
[1743224400125,10.71767,1894.9,1894.5,0.7141]
[1743224400325,4.26377,1894.7,1894.6,1.422]
[1743224400830,5.61267,1894.7,1894.6,1.422]
[1743224402520,1.05603,1894.6,1894.5,0.00791494]
[1743224402729,6.52563,1894.6,1894.5,0.00791494]
[1743224402929,6.52563,1894.6,1894.5,1.44131494]
[1743224403134,3.413,1894.6,1894.5,1.44131494]
[1743224403324,3.2078,1894.7,1894.5,1.44131494]
[1743224403525,3.2078,1894.7,1894.6,0.6772]
[1743224403722,6.6208,1894.7,1894.6,0.6772]
[1743224403928,6.6208,1894.7,1894.6,2.1106]
[1743224404332,3.413,1894.7,1894.6,2.1106]
[1743224404530,4.46897,1894.7,1894.6,2.1106]
[1743224406931,1.05594,1894.8,1894.6,2.1106]
[1743224407136,1.05594,1894.8,1894.7,1.4536]
[1743224407330,4.46794,1894.8,1894.7,2.1633]
[1743224411140,5.87864,1894.8,1894.7,2.1633]
[1743224413539,5.87864,1894.8,1894.7,1.4536]
[1743224420440,2.46664,1894.8,1894.7,1.4536]
[1743224420636,4.46594,1894.8,1894.7,1.4536]
[1743224421240,3.41,1894.8,1894.7,1.4536]
[1743224421544,4.46592,1894.8,1894.7,1.4536]
[1743224422047,3.41,1894.8,1894.7,1.4536]
[1743224422244,1.4124,1895.0,1894.9,1.05586]
[1743224422445,4.8364,1895.0,1894.7,2.50954]
[1743224422844,4.8364,1895.0,1894.8,1.4139]
[1743224423248,5.89221,1895.0,1894.9,0.6785]
[1743224429353,1.05586,1894.9,1894.8,1.4139]
[1743224429652,2.49896,1894.9,1894.8,1.4139]
[1743224436157,1.05597,1894.7,1894.6,3.885]
[1743224436459,1.05597,1894.7,1894.6,2.0125]
[1743224436460,4.46597,1894.7,1894.6,2.0125]
[1743224436960,1.05603,1894.6,1894.5,0.00791494]
[1743224437262,2.41043,1894.6,1894.5,0.00791494]
[1743224439061,1.05625,1894.2,1894.1,0.739]
[1743224439250,4.47025,1894.2,1894.1,0.739]
[1743224440163,4.47025,1894.2,1894.1,2.1179]
[1743224441360,3.2078,1895.1,1894.1,30.30129103]
[1743224441563,3.2078,1895.5,1895.0,2.63948]
[1743224441758,1.4631,1895.6,1895.2,3.2078]
[1743224441958,3.474,1895.5,1895.4,1.05558]
[1743224442566,3.48091494,1895.6,1895.4,1.05558]
[1743224442961,3.48091494,1895.6,1895.5,1.3423]
[1743224443159,3.48091494,1895.6,1895.5,2.90110507]
[1743224443363,3.48091494,1895.6,1895.5,1.84557507]
[1743224443668,3.48091494,1895.6,1895.5,2.90110507]
[1743224444463,0.00791494,1895.6,1895.5,2.90110507]
[1743224445863,0.00791494,1895.6,1895.5,2.90050423]
[1743224447060,0.00791494,1895.6,1895.5,2.90024998]
[1743224450565,0.00791494,1895.6,1895.5,6.10737309]
[1743224450761,0.00791494,1895.6,1895.5,6.1073731]
[1743224451362,0.00791494,1895.6,1895.5,2.8995731]
[1743224451562,0.00791494,1895.6,1895.5,6.1073731]
[1743224455174,0.00791494,1895.6,1895.5,5.60563]
[1743224459384,0.00791494,1895.6,1895.3,1.56461989]
[1743224459385,1.05555,1895.5,1895.3,1.56461989]
[1743224459572,1.3589,1895.4,1895.3,1.36331494]
[1743224459773,1.3589,1895.4,1895.3,2.41895494]
[1743224461377,4.1251,1895.5,1895.3,2.41895494]
[1743224461582,4.1251,1895.5,1895.4,1.3554]
[1743224461785,5.18063,1895.5,1895.4,1.3554]
[1743224461980,6.53953,1895.5,1895.4,1.3554]
[1743224462775,5.484,1895.5,1895.4,2.41098]
[1743224464774,5.484,1895.5,1895.4,1.3554]
[1743224465190,5.484,1895.5,1895.4,2.41098]
[1743224465480,6.53953,1895.5,1895.4,1.3554]
[1743224467285,1.05558,1895.4,1895.3,0.50899161]
[1743224467488,2.40668,1895.4,1895.3,1.38491494]
[1743224468091,1.3511,1895.4,1895.3,2.9420443]
[1743224471883,2.40668,1895.4,1895.3,2.9420443]
[1743224472689,1.3511,1895.4,1895.3,2.9420443]
[1743224472989,2.40668,1895.4,1895.3,1.8864043]
[1743224473191,2.40668,1895.4,1895.3,1.88975719]
[1743224475207,2.40668,1895.4,1895.3,0.51275719]
[1743224476483,1.3511,1895.4,1895.3,0.51275719]
[1743224476891,1.3511,1895.4,1895.3,1.92305719]
[1743224477092,1.3511,1895.4,1895.3,1.92291404]
[1743224477882,1.3511,1895.4,1895.3,2.97855404]
[1743224478697,2.40668,1895.4,1895.3,1.92291404]
[1743224479093,2.40668,1895.4,1895.3,1.92285504]
[1743224480102,2.40668,1895.4,1895.3,0.51255504]
[1743224480896,2.40668,1895.4,1895.3,0.51254038]
[1743224482796,2.40668,1895.4,1895.3,0.00791494]
[1743224482997,2.40668,1895.4,1895.3,0.51253775]
[1743224483299,1.05589,1894.9,1894.7,1.58394]
[1743224483494,4.47989,1894.9,1894.8,1.338]
[1743224487204,5.15719,1894.9,1894.8,1.338]
[1743224490307,3.424,1894.9,1894.8,1.338]
[1743224490606,4.47986,1894.9,1894.8,1.338]
[1743224491401,1.05611,1894.5,1894.0,3.2078]
[1743224491597,4.1506,1894.4,1894.0,0.09184712]
[1743224491799,0.6936,1894.4,1894.1,1.4062]
[1743224492095,3.471,1894.3,1894.2,1.74635]
[1743224492296,3.471,1894.3,1894.2,3.15255]
[1743224492499,3.471,1894.3,1894.2,2.0963]
[1743224492699,3.471,1894.3,1894.2,3.15255]
[1743224493103,0.00791494,1894.4,1894.3,1.0562]
[1743224493305,0.00791494,1894.4,1894.3,2.5271]
[1743224493709,0.00791494,1894.4,1894.3,1.4709]
[1743224494700,0.00791494,1894.4,1894.3,3.222]
[1743224495309,0.00791494,1894.4,1894.3,2.65813082]
[1743224495900,0.00791494,1894.4,1894.3,3.71433082]
[1743224496306,0.00791494,1894.4,1894.3,3.222]
[1743224496607,0.00791494,1894.4,1894.3,2.65806947]
[1743224498310,0.00791494,1894.4,1894.3,2.65801318]
[1743224498709,0.00791494,1894.4,1894.3,3.71421318]
[1743224501511,0.00791494,1894.4,1894.3,2.65801318]
[1743224502212,0.00791494,1894.4,1894.3,3.71433238]
[1743224502813,1.06405494,1894.4,1894.3,2.65813238]
[1743224503202,1.05625,1894.2,1894.1,0.00791494]
[1743224503416,4.51325,1894.2,1894.1,1.43561494]
[1743224503606,4.51325,1894.2,1894.1,0.5003328]
[1743224503803,5.94885,1894.2,1894.1,0.00791494]
[1743224504214,8.44885,1894.2,1894.1,0.00791494]
[1743224510622,11.65665,1894.2,1894.1,0.00791494]
[1743224513121,8.44885,1894.2,1894.1,0.00791494]
[1743224513322,11.65665,1894.2,1894.1,0.00791494]
[1743224517619,9.15665,1894.2,1894.1,0.00791494]
[1743224520418,11.65665,1894.2,1894.1,0.00791494]
[1743224520724,11.65665,1894.2,1893.3,4.79254]
[1743224520725,1.05664,1893.5,1893.4,0.492941]
[1743224520921,1.05664,1893.5,1893.2,2.609341]
[1743224520922,1.05675,1893.3,1893.2,2.609341]
[1743224521631,1.05675,1893.3,1893.2,2.1164]
[1743224521834,1.05675,1893.3,1893.2,2.609341]
[1743224522218,1.05675,1893.3,1893.2,2.1164]
[1743224523833,1.05675,1893.3,1893.2,1.3955]
[1743224524035,1.79495,1893.3,1893.2,1.3955]
[1743224524921,0.00791494,1893.4,1893.2,1.3955]
[1743224525141,53.31356,1893.7,1893.3,5.42728109]
[1743224525431,1.05659,1893.6,1893.4,1.95343109]
[1743224525631,1.05659,1893.6,1893.5,1.4612]
[1743224526128,53.31356,1893.7,1893.5,1.4612]
[1743224526333,53.31356,1893.7,1893.5,1.95342366]
[1743224526334,52.26491494,1893.7,1893.5,1.95342366]
[1743224526536,53.32145494,1893.7,1893.5,1.95342366]
[1743224526728,53.32145494,1893.7,1893.6,1.3813]
[1743224527220,54.72375494,1893.7,1893.6,1.3813]
[1743224529434,53.32144494,1893.7,1893.6,1.3813]
[1743224529736,52.26491494,1893.7,1893.6,2.93048504]
[1743224530128,52.26491494,1893.7,1893.6,1.87384155]
[1743224530536,52.26491494,1893.7,1893.6,2.93043155]
[1743224531030,52.26491494,1893.7,1893.6,1.87384155]
[1743224531435,53.32144494,1893.7,1893.6,1.87384155]
[1743224531733,52.26491494,1893.7,1893.6,1.87384155]
[1743224531942,53.32144494,1893.7,1893.6,1.87384155]
[1743224534130,54.72134494,1893.7,1893.6,1.87384155]
[1743224537238,55.45834494,1893.7,1893.6,1.3813]
[1743224539740,1.05659,1893.6,1893.5,1.3972]
[1743224539938,5.71729,1893.6,1893.5,1.3972]
[1743224540141,1.0567,1893.4,1893.3,0.6705]
[1743224540345,4.5087,1893.4,1893.3,1.16421679]
[1743224540539,4.5087,1893.4,1893.3,0.6705]
[1743224540735,1.05675,1893.3,1893.2,1.3972]
[1743224540935,1.05675,1893.3,1893.2,1.89094459]
[1743224540936,2.50965,1893.3,1893.2,1.89094459]
[1743224541141,3.18445,1893.3,1893.2,1.89094459]
[1743224543043,1.05675,1893.3,1893.2,1.89094459]
[1743224547147,1.05675,1893.3,1893.2,1.89104418]
[1743224547347,1.05675,1893.3,1893.2,1.89104123]
[1743224549150,2.42555,1893.3,1893.2,1.89104123]
[1743224558851,2.42555,1893.3,1893.2,1.3972]
[1743224559058,2.42555,1893.3,1893.2,1.89120813]
[1743224559261,3.13535,1893.3,1893.2,1.89120813]
[1743224560356,2.42555,1893.3,1893.2,1.89120813]
[1743224560750,2.42555,1893.3,1893.2,1.3972]
[1743224560955,2.42555,1893.3,1893.2,1.89132036]
[1743224562246,1.05675,1893.3,1893.2,1.89132036]
[1743224562451,1.05675,1893.3,1893.2,2.58412036]
[1743224562851,1.05675,1893.3,1893.2,2.58438988]
[1743224563962,2.42335,1893.3,1893.2,2.58438988]
[1743224564262,1.05675,1893.3,1893.2,2.58438988]
[1743224566562,1.05675,1893.3,1893.2,2.09]
[1743224566764,1.05675,1893.3,1893.2,2.58494338]
[1743224568067,2.40725,1893.3,1893.2,2.58494338]
[1743224568564,2.40725,1893.3,1893.2,2.58516536]
[1743224571863,2.40725,1893.3,1893.2,1.89236536]
[1743224572264,2.40725,1893.3,1893.2,0.49516536]
[1743224572466,1.05681,1893.2,1893.1,0.67751494]
[1743224572763,6.37831,1893.2,1893.1,1.17294478]
[1743224577164,6.37831,1893.2,1893.1,0.50334478]
[1743224577371,6.37831,1893.2,1893.1,0.00791494]
[1743224577568,1.05709,1892.7,1892.6,0.7164]
[1743224577768,7.67789,1892.7,1892.6,1.21185134]
[1743224577966,7.67789,1892.7,1892.6,0.49545134]
[1743224578169,1.0572,1892.5,1892.4,1.4034]
[1743224578367,1.0572,1892.5,1892.4,1.89820016]
[1743224579765,4.265,1892.5,1892.4,0.49480016]
[1743224579968,1.05726,1892.4,1892.3,1.47541494]
[1743224580168,5.89476,1892.4,1892.3,1.96985484]
[1743224580363,5.89476,1892.4,1892.3,0.50235484]
[1743224580566,5.89476,1892.4,1892.3,0.00791494]
[1743224580767,6.58356,1892.4,1892.3,0.00791494]
[1743224586270,9.08356,1892.4,1892.3,0.00791494]
[1743224588774,3.2078,1892.5,1892.4,1.05726]
[1743224589077,3.44091494,1892.6,1892.4,2.1001]
[1743224589375,3.44091494,1892.6,1892.5,2.1178]
[1743224590774,4.49805494,1892.6,1892.5,2.1178]
[1743224590978,3.44091494,1892.6,1892.5,2.1178]
[1743224591372,4.49805494,1892.6,1892.5,2.1178]
[1743224591877,5.96715494,1892.6,1892.5,2.1178]
[1743224593566,4.91001494,1892.6,1892.3,0.00791494]
[1743224593770,1.05726,1892.4,1892.3,1.38281494]
[1743224594175,2.49266,1892.4,1892.3,1.38281494]
[1743224600179,4.99266,1892.4,1892.3,0.00791494]
[1743224612293,5.93466,1892.4,1892.3,0.00791494]
[1743224613593,4.49926,1892.4,1892.3,0.00791494]
[1743224613987,4.49726,1892.4,1892.3,0.00791494]
[1743224614793,4.49726,1892.4,1892.3,1.41421494]
[1743224615891,3.2078,1892.5,1892.3,1.41421494]
[1743224616196,1.1929,1892.4,1892.3,1.41421494]
[1743224616398,1.1929,1892.4,1892.3,1.9079203]
[1743224616590,1.1929,1892.4,1892.3,4.4079203]
[1743224617192,2.25016,1892.4,1892.3,1.9079203]
[1743224617692,2.25016,1892.4,1892.3,1.41421494]
[1743224620199,3.63896,1892.4,1892.3,1.41421494]
[1743224621592,52.48396,1892.4,1892.3,1.41421494]
[1743224624106,55.69176,1892.4,1892.3,1.41421494]
[1743224625597,54.30296,1892.4,1892.3,1.41421494]
[1743224629111,56.35326,1892.4,1892.3,1.41421494]
[1743224633513,53.11006,1892.4,1892.3,1.41421494]
[1743224633703,56.54406,1892.4,1892.3,1.41421494]
[1743224640105,57.90476,1892.4,1892.3,1.41421494]
[1743224646111,54.69696,1892.4,1892.3,1.41421494]
[1743224646312,57.90476,1892.4,1892.3,1.41421494]
[1743224648514,2.64363,1892.1,1891.5,3.2078]
[1743224648711,4.26534,1891.9,1891.8,1.4334]
[1743224648906,4.26534,1891.9,1891.8,1.92884735]
[1743224649808,4.26534,1891.9,1891.8,1.92875623]
[1743224651613,4.26534,1891.9,1891.8,1.92851383]
[1743224651814,4.26534,1891.9,1891.8,1.92851075]
[1743224653714,4.26534,1891.9,1891.8,1.92836865]
[1743224655819,4.26534,1891.9,1891.8,1.92827269]
[1743224656108,1.05754,1891.9,1891.8,1.92827269]
[1743224656314,4.26534,1891.9,1891.8,1.4334]
[1743224658022,1.0577,1891.6,1891.5,0.7339]
[1743224658320,7.6765,1891.6,1891.5,1.22878367]
[1743224658505,7.6765,1891.6,1891.5,0.7339]
[1743224658912,1.05781,1891.4,1891.3,1.3469]
[1743224659107,1.05781,1891.4,1891.3,1.84166657]
[1743224659321,1.05781,1891.4,1891.3,1.3469]
[1743224659623,1.05781,1891.4,1891.3,1.84144792]
[1743224660118,48.85991494,1891.5,1891.3,1.84144792]
[1743224660312,48.85991494,1891.5,1891.4,0.49451892]
[1743224660518,49.91771494,1891.5,1891.4,0.49451892]
[1743224661220,1.05789,1891.3,1891.0,0.0079]
[1743224661424,3.418,1891.2,1891.1,0.49437765]
[1743224661619,48.85991494,1891.5,1891.1,0.49437765]
[1743224661923,3.418,1891.4,1891.2,0.49437765]
[1743224662113,4.47585,1891.4,1891.3,0.50267765]
[1743224665122,4.47585,1891.4,1891.3,0.50227965]
[1743224666926,3.418,1891.4,1891.3,0.50227965]
[1743224667228,3.418,1891.4,1891.3,3.00223677]
[1743224668024,4.47581,1891.4,1891.3,3.00223677]
[1743224669527,4.47581,1891.4,1891.3,0.50223677]
[1743224672728,3.418,1891.4,1891.3,1.56036993]
[1743224672934,3.418,1891.4,1891.3,4.76816993]
[1743224675336,48.85991494,1891.5,1891.4,1.05781]
[1743224675533,48.85991494,1891.5,1891.4,1.55200993]
[1743224675731,48.85991494,1891.5,1891.4,4.05200993]
[1743224676231,48.85991494,1891.5,1891.4,5.45500993]
[1743224676435,48.85991494,1891.5,1891.4,6.17860993]
[1743224677440,0.00791494,1891.5,1891.4,6.17860993]
[1743224678635,0.00791494,1891.5,1891.4,6.17919931]
[1743224680234,0.00791494,1891.5,1891.4,9.38699931]
[1743224680429,0.00791494,1891.5,1891.4,9.386942]
[1743224681736,1.06567494,1891.5,1891.4,1.897732]
[1743224681941,3.11987494,1891.5,1891.4,1.897732]
[1743224682437,3.11987494,1891.5,1891.4,1.89778135]
[1743224685038,3.11987494,1891.5,1891.4,0.49478135]
[1743224685353,1.05785,1891.4,1891.2,4.5902]
[1743224685531,4.46887,1891.3,1891.2,1.3824]
[1743224685938,1.05793,1891.2,1891.1,5.998]
[1743224686138,1.3721,1891.2,1891.1,5.998]
[1743224686437,1.3721,1891.2,1891.1,7.3804]
[1743224686639,1.3721,1891.2,1891.1,1.3824]
[1743224687231,2.43003,1891.2,1891.1,1.3824]
[1743224688242,1.3721,1891.2,1891.1,1.3824]
[1743224688550,3.14563,1891.2,1891.1,1.3824]
[1743224689642,2.0877,1891.2,1890.8,4.26592]
[1743224689847,1.05806,1891.0,1890.8,5.65642]
[1743224690144,5.593,1890.9,1890.8,4.26592]
[1743224690340,6.65109,1890.9,1890.8,3.2078]
[1743224690843,5.593,1890.9,1890.8,3.2078]
[1743224691047,5.593,1890.9,1890.8,4.26595]
[1743224691737,6.65109,1890.9,1890.8,3.2078]
[1743224691938,5.593,1890.9,1890.8,3.2078]
[1743224692138,6.65109,1890.9,1890.8,3.2078]
[1743224695440,5.18469,1890.9,1890.8,3.2078]
[1743224696047,4.1266,1890.9,1890.8,4.26595]
[1743224696853,52.0708,1891.3,1890.8,5.7078]
[1743224697152,5.20147,1891.2,1891.0,1.05804]
[1743224697453,5.20147,1891.2,1891.1,0.48834274]
[1743224697760,1.05799,1891.1,1890.9,1.74496]
[1743224697949,1.05799,1891.1,1891.0,0.48830808]
[1743224698148,5.5042,1891.2,1891.0,0.48830808]
[1743224698349,5.5042,1891.2,1890.9,0.6869]
[1743224698350,6.56213,1891.2,1891.1,0.48830808]
[1743224699751,1.05799,1891.1,1890.9,1.74496]
[1743224699952,2.41869,1891.1,1891.0,0.48824185]
[1743224700152,1.3607,1891.1,1891.0,0.48824185]
[1743224700360,1.3607,1891.1,1890.9,1.74496]
[1743224700551,1.3607,1891.1,1891.0,1.54625068]
[1743224700741,1.3607,1891.1,1891.0,0.48821068]
[1743224700945,2.41868,1891.1,1891.0,0.48821068]
[1743224703049,2.41868,1891.1,1891.0,0.4881436]
[1743224704152,1.3607,1891.1,1891.0,0.4881436]
[1743224705149,5.20147,1891.2,1891.0,0.4881436]
[1743224705348,6.66477,1891.2,1891.1,0.4881436]
[1743224706751,6.66477,1891.2,1891.0,1.3846]
[1743224706952,6.66477,1891.2,1891.1,0.48823268]
[1743224707759,5.6068,1891.2,1891.1,0.48823268]
[1743224708059,5.20143,1891.2,1891.1,1.83793268]
[1743224708757,6.56723,1891.2,1891.1,1.83793268]
[1743224711450,48.863,1891.3,1891.1,1.83793268]
[1743224711758,50.64597,1891.3,1891.2,1.91853268]
[1743224711955,55.50647,1891.3,1891.2,1.91853268]
[1743224712660,55.50647,1891.3,1891.2,1.91958209]
[1743224712863,3.2078,1891.4,1891.2,1.91958209]
[1743224713160,4.26561,1891.4,1891.3,0.48928209]
[1743224713459,7.67761,1891.4,1891.3,0.48928209]
[1743224714557,6.6198,1891.4,1891.3,0.48953792]
[1743224714866,7.67761,1891.4,1891.3,0.48953792]
[1743224715162,6.6198,1891.4,1891.3,0.48953792]
[1743224715562,7.67761,1891.4,1891.3,1.85993792]
[1743224716453,7.67761,1891.4,1891.3,1.8598981]
[1743224716654,7.67761,1891.4,1891.3,0.4894981]
[1743224718265,7.67761,1891.4,1891.2,1.3424]
[1743224718465,7.67761,1891.4,1891.3,0.48938046]
[1743224718667,6.6198,1891.4,1891.3,0.48938046]
[1743224718867,7.67761,1891.4,1891.3,0.48938046]
[1743224719367,6.6198,1891.4,1891.3,0.48938046]
[1743224719565,7.67761,1891.4,1891.3,0.48938046]
[1743224719761,7.67761,1891.4,1891.3,1.90148046]
[1743224720161,7.67761,1891.4,1891.3,1.4121]
[1743224720361,3.2078,1891.4,1891.3,1.90140478]
[1743224720665,0.00791494,1891.5,1891.4,1.05781]
[1743224720860,0.00791494,1891.5,1891.4,4.19091478]
[1743224721161,0.00791494,1891.5,1891.4,6.69091478]
[1743224723068,0.00791494,1891.5,1891.4,3.68761478]
[1743224723665,0.00791494,1891.5,1891.4,4.19101478]
[1743224728970,1.06567494,1891.5,1891.4,1.90140478]
[1743224729168,1.06567494,1891.5,1891.4,0.48930478]
[1743224729471,1.0579,1891.3,1891.1,1.05798]
[1743224729766,3.411,1891.2,1891.1,1.3839]
[1743224729967,5.85183,1891.2,1891.1,1.3839]
[1743224730965,1.05798,1891.1,1891.0,3.2078]
[1743224731166,2.44088,1891.1,1891.0,3.2078]
[1743224731470,2.44088,1891.1,1890.9,2.44196]
[1743224731771,2.1463,1891.0,1890.9,2.44196]
[1743224732563,2.8302,1891.0,1890.9,2.44196]
[1743224733867,1.05811,1890.9,1890.7,3.2078]
[1743224734064,2.48551,1890.9,1890.8,1.3366]
[1743224734367,5.89651,1890.9,1890.8,1.3366]
[1743224738174,4.8384,1890.9,1890.8,1.3366]
[1743224739880,5.89649,1890.9,1890.8,1.3366]
[1743224742376,4.8384,1890.9,1890.8,1.3366]
[1743224742782,5.89649,1890.9,1890.8,1.3366]
[1743224744283,1.05824,1890.7,1890.6,4.5533]
[1743224744479,2.49799,1890.8,1890.6,4.5533]
[1743224744680,1.05819,1890.8,1890.7,1.3455]
[1743224745276,4.46912,1890.9,1890.7,1.3455]
[1743224746695,1.05815,1890.8,1890.7,1.3455]
[1743224746892,4.46913,1890.9,1890.7,1.3455]
[1743224747297,4.46912,1890.9,1890.7,1.3455]
[1743224748493,3.2078,1891.1,1890.7,1.3455]